bitfinex/quotes_ETHUSD_20220118
["timestamp","ask_amount","ask_price","bid_price","bid_amount"]
[1642524732221,9.53766162,3139.7,3139.5,0.08014211]
[1642524732422,9.53766162,3139.7,3139.5,0.05014211]
[1642524733220,9.53766162,3139.7,3139.5,0.84661211]
[1642524733619,9.53766162,3139.7,3139.3,1.59293]
[1642524734020,9.53766162,3139.7,3139.4,0.00113685]
[1642524734661,9.53766162,3139.7,3139.2,0.79665]
[1642524734867,9.53766162,3139.7,3139.3,0.00170527]
[1642524736670,9.53766162,3139.7,3139.3,0.79831527]
[1642524737476,9.53766162,3139.7,3139.3,0.00170527]
[1642524737673,0.1274,3139.6,3139.3,0.00170527]
[1642524737877,0.1274,3139.6,3139.0,0.00341054]
[1642524738320,0.5364,3139.6,3139.0,0.00341054]
[1642524738515,0.79674,3139.5,3138.2,1.59361]
[1642524738818,0.79674,3139.5,3137.1,1.50875481]
[1642524738819,0.01298403,3139.0,3138.3,0.00227369]
[1642524739015,0.5864,3138.9,3138.3,0.00227369]
[1642524739314,6.8359,3138.8,3137.2,0.00852635]
[1642524739519,6.8359,3138.8,3137.3,1.59416]
[1642524739520,0.79713,3138.3,3137.3,1.59416]
[1642524739717,1.08125067,3137.7,3137.2,0.00852635]
[1642524739918,0.5864,3138.2,3136.4,4.96048722]
[1642524739919,5.38291174,3137.5,3137.4,0.0073895]
[1642524740120,5.38291174,3137.5,3136.8,0.1274]
[1642524740121,3.8,3137.4,3136.8,0.1274]
[1642524740316,3.8,3137.4,3136.9,0.01023162]
[1642524740919,3.41021174,3137.5,3136.8,0.00341054]
[1642524741122,2.27551174,3137.5,3136.9,0.1275]
[1642524741321,2.08291174,3137.5,3136.9,0.1275]
[1642524741520,7.1634,3137.6,3137.4,1.13176217]
[1642524741921,7.1634,3137.6,3137.2,0.79706]
[1642524742667,7.1634,3137.6,3137.3,0.1274]
[1642524743262,7.1634,3137.6,3137.5,1.38867152]
[1642524743462,7.1634,3137.6,3137.5,1.51607152]
[1642524743662,7.16453685,3137.6,3137.5,0.1274]
[1642524744268,7.16453685,3137.6,3137.3,0.79689]
[1642524744668,7.16453685,3137.6,3137.3,1.5939]
[1642524745569,7.11453685,3137.6,3137.3,1.5939]
[1642524745818,7.11453685,3137.6,3137.3,2.3908494]
[1642524746815,7.11453685,3137.6,3137.3,1.5939]
[1642524747618,7.11453685,3137.6,3137.4,3.3925124]
[1642524747922,0.00113685,3137.6,3137.5,4.49385656]
[1642524748719,0.00113685,3137.6,3137.5,6.71139964]
[1642524748924,1.77964598,3138.5,3138.0,1.83729895]
[1642524749220,1.77964598,3138.5,3138.1,0.03185568]
[1642524749221,0.00511581,3138.5,3138.1,0.03185568]
[1642524749421,0.00511581,3138.5,3138.0,1.83729895]
[1642524749669,0.00511581,3138.5,3138.1,2.58534533]
[1642524750072,0.00511581,3138.5,3138.1,5.77218593]
[1642524751072,0.00511581,3138.5,3138.2,1.0]
[1642524751473,0.00511581,3138.5,3138.4,5.04659]
[1642524751675,0.00511581,3138.5,3138.4,3.28669528]
[1642524752079,0.00511581,3138.5,3138.4,0.79659]
[1642524752275,0.00511581,3138.5,3138.4,1.79659]
[1642524752474,0.00511581,3138.5,3138.4,4.31130308]
[1642524752873,0.00511581,3138.5,3138.3,5.69521688]
[1642524753337,0.00454738,3138.4,3138.3,2.3897671]
[1642524753538,0.00454738,3138.4,3138.3,4.86673123]
[1642524754542,0.00454738,3138.4,3138.3,5.86673123]
[1642524755745,0.00454738,3138.4,3138.3,5.99413123]
[1642524757576,0.00454738,3138.4,3138.3,4.40122291]
[1642524758476,0.00454738,3138.4,3138.3,1.9239871]
[1642524758677,0.00454738,3138.4,3138.3,1.1274]
[1642524758876,0.00454738,3138.4,3138.3,1.0]
[1642524759678,0.00454738,3138.4,3138.2,3.1863542]
[1642524759679,0.00454738,3138.4,3138.2,1.59318]
[1642524759881,0.00454738,3138.4,3138.0,2.42369895]
[1642524759882,0.00454738,3138.4,3138.0,1.96469895]
[1642524760079,0.13137896,3138.3,3138.0,0.1274]
[1642524760280,0.00397896,3138.3,3138.0,0.1274]
[1642524760479,0.13081054,3138.2,3138.0,0.1274]
[1642524760931,4.25284211,3138.1,3138.0,0.1274]
[1642524761123,11.24790805,3138.1,3138.0,0.1274]
[1642524762525,11.24790805,3138.1,3137.1,1.59397]
[1642524762526,11.54790805,3138.1,3137.1,1.59397]
[1642524762726,0.13854042,3138.0,3137.0,0.00227369]
[1642524763025,0.13854042,3138.0,3136.8,0.00454739]
[1642524763026,0.00170527,3137.9,3136.8,0.00454739]
[1642524763225,1.35048336,3137.3,3136.8,0.00454739]
[1642524763429,1.67869165,3137.1,3136.8,0.00454739]
[1642524764226,1.67869165,3137.1,3136.5,0.00625266]
[1642524764429,4.5981,3137.2,3136.5,0.80347266]
[1642524764877,4.5981,3137.2,3136.6,0.00568424]
[1642524765479,1.69857407,3136.9,3136.6,0.00568424]
[1642524765685,4.5981,3137.2,3136.6,0.00568424]
[1642524765883,4.5981,3137.2,3136.7,0.79719]
[1642524766384,4.5981,3137.2,3136.8,0.00454739]
[1642524766785,2.03639559,3136.9,3136.8,0.00454739]
[1642524767584,4.4706,3137.2,3136.6,0.00568424]
[1642524768185,0.1275,3137.1,3136.6,0.00568424]
[1642524768417,0.1275,3137.1,3136.5,0.00625266]
[1642524768620,0.1275,3137.1,3137.0,1.823693]
[1642524768819,0.1275,3137.1,3136.6,1.4105849]
[1642524769022,4.4706,3137.2,3137.0,0.00341054]
[1642524769224,4.4706,3137.2,3136.7,0.00511581]
[1642524769423,4.4706,3137.2,3136.7,1.00511581]
[1642524769624,4.4706,3137.2,3136.8,0.1275]
[1642524769823,3.8148,3138.1,3136.8,0.13204739]
[1642524769824,0.1275,3138.0,3136.8,0.13204739]
[1642524770025,4.5763,3138.0,3137.1,1.17049645]
[1642524770224,4.5763,3138.0,3137.2,0.79698]
[1642524770425,2.13709365,3137.9,3137.4,2.27704417]
[1642524770623,2.13709365,3137.9,3137.3,0.00170527]
[1642524770824,4.5763,3138.0,3137.3,0.00170527]
[1642524771026,4.5763,3138.0,3137.2,2.45045796]
[1642524771229,4.5763,3138.0,3137.3,0.00170527]
[1642524771725,4.5763,3138.0,3137.3,0.79866527]
[1642524771927,4.5763,3138.0,3137.4,4.7717657]
[1642524772168,4.5763,3138.0,3137.4,6.36662255]
[1642524772770,6.31433624,3138.0,3137.5,0.7968836]
[1642524773970,6.31433624,3138.0,3137.5,0.79696]
[1642524775375,6.31433624,3138.0,3137.4,0.00113685]
[1642524775575,0.1274,3137.9,3137.4,0.00113685]
[1642524777629,0.1274,3137.9,3137.4,1.59504685]
[1642524777829,0.1274,3137.7,3137.4,2.39200685]
[1642524778028,0.1274,3137.7,3137.5,0.79695]
[1642524779230,0.1274,3137.9,3137.5,1.5938949]
[1642524779430,0.1274,3137.9,3137.6,0.79695]
[1642524781875,6.31433624,3138.0,3137.6,0.79695]
[1642524782076,0.1274,3137.7,3137.5,0.79695]
[1642524782279,0.1274,3137.7,3137.4,1.59504685]
[1642524782477,0.1274,3137.7,3137.4,0.00113685]
[1642524782678,0.89,3137.7,3137.4,0.00113685]
[1642524782878,5.95,3137.6,3136.7,0.1274]
[1642524783078,5.95,3137.6,3136.8,0.00341054]
[1642524783079,1.30057069,3136.9,3136.8,0.00341054]
[1642524783330,1.0701,3136.9,3136.8,0.00341054]
[1642524783521,1.0701,3136.9,3136.5,0.79725]
[1642524783722,1.0701,3136.9,3136.6,0.79727]
[1642524783921,1.0701,3136.9,3136.6,0.80181739]
[1642524784122,3.19543684,3137.6,3136.7,0.00397896]
[1642524784123,0.1275,3137.5,3136.7,0.00397896]
[1642524784326,0.00113684,3137.6,3136.8,1.39450965]
[1642524784524,0.00113684,3137.6,3136.9,2.62152394]
[1642524784726,0.00113684,3137.6,3137.1,0.79681]
[1642524784926,0.00113684,3137.6,3137.4,1.99199303]
[1642524786030,0.00113684,3137.6,3137.5,2.4538882]
[1642524786231,0.00113684,3137.6,3137.3,1.79688]
[1642524786431,0.00113684,3137.6,3137.5,0.79689]
[1642524786631,0.00113684,3137.6,3137.4,0.79688]
[1642524788776,0.00113684,3137.6,3137.5,6.09235809]
[1642524789076,0.00113684,3137.6,3137.5,7.09235809]
[1642524789577,0.00113684,3137.6,3137.5,7.39235809]
[1642524789975,0.1274,3138.7,3137.6,5.9]
[1642524790176,0.27104691,3139.3,3137.9,0.08039642]
[1642524790177,0.1274,3139.2,3137.9,0.08039642]
[1642524790377,0.27104691,3139.3,3138.1,0.06188868]
[1642524790575,0.27104691,3139.3,3138.3,0.00638662]
[1642524790825,0.27104691,3139.3,3138.4,1.59311]
[1642524790826,0.13649478,3139.2,3138.4,1.59311]
[1642524791221,2.127787,3138.9,3138.5,2.38967]
[1642524791422,2.127787,3138.9,3138.5,1.59312]
[1642524791622,0.00682109,3138.8,3138.5,4.9827793]
[1642524792128,0.00625266,3138.7,3138.5,4.9827793]
[1642524792526,0.1274,3139.4,3138.5,4.9827793]
[1642524792527,0.00568424,3138.6,3138.5,4.9827793]
[1642524792726,0.00568424,3138.6,3138.5,8.06097346]
[1642524792928,0.00568424,3138.6,3138.5,3.9827662]
[1642524793226,0.00568424,3138.6,3138.5,4.9827662]
[1642524793928,0.00568424,3138.6,3138.5,7.45214059]
[1642524794329,0.1274,3139.4,3138.6,5.9]
[1642524794572,3.7341,3139.5,3138.8,2.38926]
[1642524794776,0.00397897,3139.3,3138.9,4.09054814]
[1642524795173,0.00341054,3139.2,3139.1,1.95449065]
[1642524796779,0.00341054,3139.2,3139.1,2.75091065]
[1642524797178,0.00341054,3139.2,3139.1,3.75091065]
[1642524797382,0.00341054,3139.2,3139.1,2.75091065]
[1642524797579,0.00341054,3139.2,3139.1,3.75091065]
[1642524797780,0.00341054,3139.2,3139.1,2.75091065]
[1642524797980,0.00341054,3139.2,3139.1,3.75091065]
[1642524798181,0.00341054,3139.2,3139.1,2.75091065]
[1642524798422,0.00341054,3139.2,3139.1,1.95449065]
[1642524799425,0.00341054,3139.2,3139.0,1.0]
[1642524799625,0.00341054,3139.2,3138.9,0.79642]
[1642524799626,0.00341054,3139.2,3138.9,1.79642]
[1642524799828,0.00284212,3139.1,3138.9,1.79642]
[1642524800133,0.0022737,3139.0,3138.9,2.59299]
[1642524800527,0.0022737,3139.0,3138.9,4.62473159]
[1642524801529,0.0022737,3139.0,3138.9,2.82816159]
[1642524801930,0.0022737,3139.0,3138.9,3.82816159]
[1642524803172,0.0022737,3139.0,3138.9,4.62465159]
[1642524803369,0.0022737,3139.0,3138.9,7.15871869]
[1642524805378,0.0022737,3139.0,3138.9,4.62465159]
[1642524806038,0.0022737,3139.0,3138.9,3.62465159]
[1642524806438,0.0022737,3139.0,3138.9,2.82816159]
[1642524806939,0.0022737,3139.0,3138.9,2.03174159]
[1642524807541,0.1296737,3139.0,3138.5,0.13819997]
[1642524807741,0.0022737,3139.0,3138.5,0.13819997]
[1642524807946,0.00170527,3138.9,3138.5,0.13819997]
[1642524808141,0.00170527,3138.9,3138.5,2.52806157]
[1642524808343,0.00113685,3138.8,3138.5,2.52806157]
[1642524808741,2.32783613,3139.3,3138.6,1.64398261]
[1642524808943,0.1274,3139.2,3138.6,1.64398261]
[1642524809142,0.13081054,3139.2,3138.7,0.79664]
[1642524809341,0.00284212,3139.1,3138.7,0.79664]
[1642524809572,0.1274,3139.0,3138.7,0.79664]
[1642524809771,0.1296737,3139.0,3138.7,0.79664]
[1642524809974,0.00170527,3138.9,3138.7,0.79664]
[1642524810374,0.00113685,3138.8,3138.7,1.59325]
[1642524811981,0.00113685,3138.8,3138.7,4.54325]
[1642524812583,0.00113685,3138.8,3138.7,1.59325]
[1642524813424,0.06576803,3139.3,3138.7,1.59325]
[1642524813627,0.4274,3139.5,3138.7,1.59325]
[1642524813824,0.00227369,3139.2,3138.7,1.5931959]
[1642524814027,0.00227369,3139.2,3138.3,0.13819997]
[1642524814227,2.524155,3139.5,3138.3,0.13819997]
[1642524814228,0.12910527,3139.1,3138.3,0.13819997]
[1642524814428,0.00170527,3139.1,3138.4,0.0022737]
[1642524814625,0.12853685,3139.0,3138.4,0.0022737]
[1642524814927,1.80453526,3139.3,3138.7,1.74749684]
[1642524815125,0.1274,3139.2,3138.7,1.74749684]
[1642524815328,0.3,3139.3,3138.7,1.74749684]
[1642524815525,0.00170527,3139.1,3138.7,1.74749684]
[1642524815727,0.00284212,3139.3,3138.7,1.74749684]
[1642524815925,0.00113685,3139.0,3138.7,1.74749684]
[1642524816126,1.67267018,3139.4,3138.7,1.74749684]
[1642524816327,1.67267018,3139.4,3138.7,3.34054684]
[1642524816525,0.00284212,3139.3,3138.4,0.0022737]
[1642524816728,0.96858144,3139.1,3138.4,0.0022737]
[1642524816927,0.1274,3139.0,3138.4,0.0022737]
[1642524817180,0.1274,3139.0,3137.5,1.59374]
[1642524817181,0.58753685,3139.0,3138.1,0.00397897]
[1642524817377,0.79697,3138.9,3137.6,0.00682108]
[1642524817582,2.2259215,3138.1,3137.7,0.00625266]
[1642524817782,3.6230215,3138.1,3137.2,0.00909478]
[1642524817983,3.7504215,3138.1,3137.6,0.00682108]
[1642524818180,1.5245,3138.1,3137.2,0.00909478]
[1642524818781,0.4274,3138.1,3137.2,0.80606328]
[1642524818982,0.4274,3138.1,3137.2,1.60284668]
[1642524818983,0.1274,3138.1,3137.2,1.60284668]
[1642524819183,3.12290128,3138.5,3137.9,1.91989512]
[1642524819384,2.42290128,3138.5,3137.9,1.91989512]
[1642524819591,2.42290128,3138.5,3138.0,0.00454739]
[1642524820827,4.51988128,3138.5,3138.0,0.00454739]
[1642524821031,3.72290128,3138.5,3137.7,0.00364606]
[1642524821229,3.72290128,3138.5,3137.3,0.00591975]
[1642524821230,0.79706,3138.4,3137.3,0.00591975]
[1642524821427,0.79706,3138.4,3136.9,0.1274]
[1642524821428,0.1274,3138.3,3137.1,0.0070566]
[1642524821630,1.17712805,3137.4,3137.1,0.0070566]
[1642524821829,1.17712805,3137.4,3137.0,0.00762502]
[1642524821830,2.1183216,3137.2,3137.0,0.00762502]
[1642524822028,2.1183216,3137.2,3136.4,0.27639994]
[1642524822029,2.1183216,3137.2,3136.6,0.00989872]
[1642524822229,2.1183216,3137.2,3136.5,0.01046714]
[1642524822829,2.0683216,3137.2,3136.5,0.01046714]
[1642524823228,5.0171,3137.3,3136.5,0.01046714]
[1642524823430,4.9671,3137.3,3136.5,0.01046714]
[1642524824329,4.9671,3137.3,3137.0,1.97933675]
[1642524824570,4.9671,3137.3,3136.5,2.40184904]
[1642524824771,4.9671,3137.3,3137.1,0.0070566]
[1642524824971,4.9671,3137.3,3136.6,0.00989872]
[1642524825775,4.9671,3137.3,3136.7,1.72763587]
[1642524825976,4.7171,3137.3,3136.7,1.72763587]
[1642524826178,4.7171,3137.3,3136.8,2.63028581]
[1642524826382,4.7171,3137.3,3136.8,1.60271187]
[1642524826578,4.7171,3137.3,3136.9,1.00819345]
[1642524826779,4.7171,3137.3,3136.9,0.00819345]
[1642524826978,4.7171,3137.3,3137.0,0.00762502]
[1642524827179,6.58391104,3137.3,3136.9,0.00819345]
[1642524827379,6.58391104,3137.3,3137.0,0.00762502]
[1642524827380,7.18391104,3137.3,3137.0,0.00762502]
[1642524827580,7.18391104,3137.3,3136.9,0.00819345]
[1642524827779,7.18391104,3137.3,3136.8,0.00876187]
[1642524827981,7.98117104,3137.3,3136.5,0.01046714]
[1642524828182,8.10867104,3137.3,3136.5,0.01046714]
[1642524828625,8.10867104,3137.3,3136.4,0.01103556]
[1642524828824,1.72392867,3136.5,3136.4,0.01103556]
[1642524829027,13.06289987,3137.3,3136.3,0.01160399]
[1642524829225,1.2317,3137.2,3136.3,0.01160399]
[1642524829424,1.2317,3137.2,3136.1,7.45]
[1642524829425,0.92481,3137.1,3136.2,0.01217241]
[1642524829625,1.22481,3137.1,3136.2,0.01217241]
[1642524830431,0.4275,3137.1,3136.2,0.01217241]
[1642524830731,0.4275,3137.1,3136.2,1.18087787]
[1642524831030,0.4275,3137.1,3136.5,1.73757954]
[1642524831232,0.4275,3137.1,3136.5,2.53469724]
[1642524831430,0.3,3137.2,3136.6,0.00989872]
[1642524831633,5.3171,3137.3,3136.6,0.00989872]
[1642524832084,2.20871518,3137.1,3136.6,0.00989872]
[1642524832477,2.50871518,3137.1,3136.6,0.00989872]
[1642524832780,2.50871518,3137.1,3136.3,0.01160399]
[1642524833177,2.50871518,3137.1,3136.3,0.80880399]
[1642524833377,2.50871518,3137.1,3136.3,3.34233978]
[1642524833576,2.50871518,3137.1,3136.4,1.01103556]
[1642524833778,0.3,3137.1,3136.4,2.90498179]
[1642524834078,5.0171,3137.3,3136.5,0.01046714]
[1642524834079,4.7171,3137.3,3136.5,0.01046714]
[1642524834281,5.0171,3137.3,3136.5,2.40150714]
[1642524834480,5.0171,3137.3,3136.6,0.7969456]
[1642524834678,4.7171,3137.3,3136.6,1.80684432]
[1642524834879,4.7171,3137.3,3136.7,3.02562169]
[1642524835082,4.7171,3137.3,3136.8,1.0]
[1642524835277,4.7171,3137.3,3136.8,1.00876187]
[1642524835478,4.7171,3137.3,3136.9,3.19596265]
[1642524835679,4.7171,3137.3,3137.0,1.79698]
[1642524835924,4.7171,3137.3,3137.0,1.80460502]
[1642524836125,4.7171,3137.3,3137.1,0.0070566]
[1642524836928,4.7171,3137.3,3137.1,1.6009166]
[1642524837125,4.7171,3137.3,3137.1,2.6009166]
[1642524839614,0.00454738,3138.1,3137.4,0.7968908]
[1642524839805,0.00454738,3138.1,3137.8,2.01374138]
[1642524840010,0.00397896,3138.0,3137.9,0.79682]
[1642524841306,0.00397896,3138.0,3137.9,6.39682]
[1642524842110,0.1274,3139.1,3137.9,6.39682]
[1642524842111,0.08137896,3139.1,3138.0,2.4]
[1642524842308,0.08137896,3139.1,3138.4,1.71078404]
[1642524842507,0.00568424,3139.0,3138.1,1.59348]
[1642524842707,0.1274,3138.9,3137.9,2.57503033]
[1642524842908,0.13251581,3138.9,3137.8,3.03773856]
[1642524843207,0.00454739,3138.8,3137.9,1.0]
[1642524843425,1.91379214,3138.5,3137.9,3.16873181]
[1642524843630,1.91379214,3138.5,3137.9,3.96550591]
[1642524843827,0.00227369,3138.4,3137.9,3.96550591]
[1642524844030,0.00227369,3138.4,3138.1,0.79675]
[1642524844239,0.00170527,3138.3,3138.1,0.79675]
[1642524844635,0.00113685,3138.2,3138.1,1.5934792]
[1642524845633,0.00113685,3138.2,3138.1,0.79675]
[1642524846033,0.00113685,3138.2,3137.9,4.76228481]
[1642524846435,0.00113685,3138.2,3137.9,3.96552181]
[1642524846834,0.00113685,3138.2,3137.9,4.76229961]
[1642524847079,0.00113685,3138.2,3138.0,0.79676]
[1642524848581,0.00113685,3138.2,3138.0,4.07825678]
[1642524848883,0.00113685,3138.2,3138.1,5.74987245]
[1642524849084,0.00113685,3138.2,3138.0,1.59347]
[1642524849482,0.00113685,3138.2,3138.0,3.1868117]
[1642524849986,0.00113685,3138.2,3138.1,1.0]
[1642524850183,1.96986263,3139.0,3138.1,1.0]
[1642524850384,1.96986263,3139.0,3138.4,1.86140223]
[1642524850583,0.00397896,3138.9,3138.4,1.86140223]
[1642524850843,0.1274,3138.8,3138.1,1.0]
[1642524851036,0.13081054,3138.8,3138.1,1.0]
[1642524851235,0.00284211,3138.7,3138.1,1.0]
[1642524851437,0.00284211,3138.7,3138.1,1.79674]
[1642524851638,0.00227369,3138.6,3138.1,1.79674]
[1642524851936,0.1274,3138.9,3138.1,1.79674]
[1642524851937,0.00170527,3138.5,3138.1,1.79674]
[1642524852141,1.83042194,3138.5,3138.1,1.79674]
[1642524852337,0.00113684,3138.4,3138.1,1.0]
[1642524852543,0.00113684,3138.4,3137.9,1.5934]
[1642524852937,0.00113684,3138.4,3138.0,0.00113685]
[1642524853137,0.12853684,3138.4,3138.0,0.00113685]
[1642524853337,0.12853684,3138.4,3138.0,1.8649273]
[1642524853537,0.12853684,3138.4,3138.0,0.00113685]
[1642524854138,0.00113684,3138.4,3138.0,0.00113685]
[1642524855087,2.02686786,3138.4,3138.0,0.00113685]
[1642524855283,2.32686786,3138.4,3138.0,0.00113685]
[1642524855485,2.62686786,3138.4,3138.0,0.00113685]
[1642524855682,2.62686786,3138.4,3136.5,1.50875481]
[1642524855683,6.32061,3138.3,3137.9,0.00170527]
[1642524855884,7.48501,3138.3,3137.4,0.00454739]
[1642524856083,7.48501,3138.3,3136.8,0.00795793]
[1642524856084,1.08684574,3137.9,3136.8,0.00795793]
[1642524856282,0.1274,3137.8,3136.8,0.00795793]
[1642524856481,0.4274,3137.8,3137.1,2.16926863]
[1642524856683,0.4274,3137.8,3137.1,2.96627863]
[1642524856883,0.7274,3137.8,3137.2,0.00568424]
[1642524857084,0.1274,3137.8,3137.2,0.00568424]
[1642524857285,0.1274,3138.1,3137.2,0.00568424]
[1642524857483,5.5606,3138.3,3137.2,0.00568424]
[1642524857484,4.3962,3138.3,3138.0,1.43062712]
[1642524857687,4.3962,3138.3,3138.1,2.49445805]
[1642524857885,0.00113684,3138.4,3138.1,4.21521805]
[1642524858082,0.00113684,3138.4,3138.1,5.21521805]
[1642524858747,0.00113684,3138.4,3138.2,2.91427661]
[1642524861150,0.00113684,3138.4,3138.2,3.71090901]
[1642524861351,0.00113684,3138.4,3138.3,5.69325]
[1642524861552,0.00113684,3138.4,3138.3,1.59325]
[1642524861751,0.00113684,3138.4,3138.3,2.59325]
[1642524861949,0.00113684,3138.4,3138.3,5.05357306]
[1642524862582,0.00113684,3138.4,3138.3,1.59325]
[1642524863388,0.00113684,3138.4,3138.3,1.53019567]
[1642524863589,0.00113684,3138.4,3138.2,2.11756661]
[1642524864390,0.07853684,3139.2,3138.3,3.1]
[1642524864591,2.15808613,3138.9,3138.2,2.11756661]
[1642524864894,2.15808613,3138.9,3137.8,1.7208843]
[1642524864895,2.45808613,3138.9,3137.8,1.7208843]
[1642524865191,0.1274,3138.8,3137.9,0.00284211]
[1642524865595,0.00170527,3138.7,3137.8,0.00341054]
[1642524865834,1.88573566,3138.5,3137.8,0.00341054]
[1642524866041,1.88573566,3138.5,3137.7,0.00397896]
[1642524866042,5.89368,3138.4,3137.7,0.00397896]
[1642524866238,5.89368,3138.4,3137.6,0.00454738]
[1642524866239,5.0967,3138.4,3137.6,0.00454738]
[1642524866438,4.779,3138.3,3137.2,0.00682108]
[1642524866639,18.9374,3138.2,3137.0,0.00795792]
[1642524866840,18.9374,3138.2,3136.6,6.17902258]
[1642524866841,2.28444993,3137.3,3136.7,2.15182285]
[1642524867041,2.28444993,3137.3,3137.2,1.3589499]
[1642524867042,0.3,3137.3,3137.2,1.3589499]
[1642524867240,0.6,3137.3,3137.2,1.3589499]
[1642524867440,0.3,3137.3,3137.2,1.36577098]
[1642524867641,4.8949,3137.6,3137.2,1.36577098]
[1642524868042,4.8949,3137.6,3137.3,0.00625265]
[1642524868543,5.1949,3137.6,3137.3,0.00625265]
[1642524868742,5.1949,3137.6,3137.0,0.00795792]
[1642524869141,5.1949,3137.6,3137.1,0.7970146]
[1642524869344,5.1949,3137.6,3137.2,2.10049722]
[1642524869602,4.8949,3137.6,3137.2,0.00682108]
[1642524869789,5.1949,3137.6,3137.3,0.00625265]
[1642524869988,5.1949,3137.6,3137.1,0.0073895]
[1642524870189,5.1949,3137.6,3137.1,0.7970084]
[1642524870394,5.1949,3137.6,3137.1,0.79701]
[1642524870595,5.1949,3137.6,3137.2,0.00682108]
[1642524870794,4.8949,3137.6,3137.2,0.00682108]
[1642524871002,5.1949,3137.6,3137.2,0.00682108]
[1642524871196,5.1949,3137.6,3137.1,0.0073895]
[1642524871397,5.1949,3137.6,3136.7,0.00966319]
[1642524871598,0.79726,3137.3,3136.7,0.00966319]
[1642524871797,0.79726,3137.3,3136.6,0.01023162]
[1642524871798,0.92479,3137.2,3136.6,0.01023162]
[1642524871999,1.97716153,3137.1,3136.4,0.01136846]
[1642524872201,2.1075705,3136.5,3136.1,0.01307374]
[1642524872404,3.4594705,3136.5,3136.1,0.01307374]
[1642524872600,1.3519,3136.5,3136.1,0.01307374]
[1642524873425,0.3,3136.5,3136.1,1.26214567]
[1642524873632,2.0634269,3136.5,3136.1,1.26214567]
[1642524873827,0.3,3136.5,3136.2,0.01250531]
[1642524874129,4.7846,3136.8,3136.2,0.01250531]
[1642524874328,4.6571,3136.8,3136.2,0.01250531]
[1642524874727,4.6571,3136.8,3136.2,3.52081465]
[1642524874928,4.6571,3136.8,3136.7,1.09986129]
[1642524875337,4.6571,3136.8,3136.7,0.00966319]
[1642524876335,4.6571,3136.8,3136.4,1.23439423]
[1642524876532,4.6571,3136.8,3136.4,2.03156153]
[1642524876733,4.6571,3136.8,3136.5,0.01080004]
[1642524876934,4.6571,3136.8,3136.6,2.04680379]
[1642524877199,4.6571,3136.8,3136.7,0.00966319]
[1642524878003,4.9571,3136.8,3136.7,0.00966319]
[1642524878404,4.9571,3136.8,3136.0,0.7972682]
[1642524878405,4.9571,3136.8,3136.0,0.81091036]
[1642524878606,4.9571,3136.8,3136.1,0.01307374]
[1642524878809,4.9571,3136.8,3136.1,0.81033374]
[1642524879008,1.9427692,3136.6,3136.1,3.02983627]
[1642524879206,4.9571,3136.8,3136.2,0.01250531]
[1642524879407,4.6571,3136.8,3136.2,0.01250531]
[1642524879707,4.6571,3136.8,3136.2,0.80974531]
[1642524879912,4.6571,3136.8,3136.3,2.71098851]
[1642524880110,4.6571,3136.8,3136.3,2.7229254]
[1642524880308,4.6571,3136.8,3136.5,0.79713]
[1642524880508,4.6571,3136.8,3136.5,1.5942501]
[1642524880710,4.6571,3136.8,3136.6,2.92165003]
[1642524880941,4.6571,3136.8,3136.6,0.01023162]
[1642524881141,4.6571,3136.8,3136.7,0.00966319]
[1642524881344,4.6571,3136.8,3136.5,1.5942501]
[1642524881345,4.6571,3136.8,3136.6,0.01023162]
[1642524881642,4.6571,3136.8,3136.4,0.01136846]
[1642524882044,2.22288291,3136.7,3136.4,0.01136846]
[1642524882444,2.52288291,3136.7,3136.4,0.01136846]
[1642524882642,2.52288291,3136.7,3136.1,0.01307374]
[1642524882643,2.65038291,3136.7,3136.1,0.01307374]
[1642524882842,0.79745,3136.6,3135.9,0.01421058]
[1642524883044,1.09745,3136.6,3135.9,0.01421058]
[1642524883242,1.09745,3136.6,3135.7,0.01534743]
[1642524883442,1.22895103,3136.4,3135.7,0.01534743]
[1642524883643,1.52895103,3136.4,3135.7,0.01534743]
[1642524883842,1.76668042,3135.8,3135.7,0.01534743]
[1642524884444,1.76668042,3135.8,3135.6,0.01591585]
[1642524884685,0.6,3136.4,3135.6,0.01591585]
[1642524884686,0.1275,3136.3,3135.6,0.01591585]
[1642524884885,0.1275,3136.3,3135.4,0.0170527]
[1642524885288,4.0018,3136.6,3135.4,0.0170527]
[1642524885887,1.74183923,3136.2,3135.7,1.69121129]
[1642524886188,4.0018,3136.6,3135.9,1.47750768]
[1642524886388,0.4275,3136.6,3135.9,1.47750768]
[1642524886589,0.1275,3136.6,3136.0,0.01364216]
[1642524886791,0.1275,3136.7,3136.0,0.01364216]
[1642524887186,2.02253495,3136.5,3136.0,0.01364216]
[1642524888463,2.62253495,3136.5,3136.0,0.01364216]
[1642524888849,2.62253495,3136.5,3135.8,0.01477901]
[1642524889454,2.62253495,3136.5,3135.9,0.79737]
[1642524889653,2.02253495,3136.5,3135.9,0.79737]
[1642524889854,2.32253495,3136.5,3136.0,0.01364216]
[1642524890056,2.62253495,3136.5,3136.0,0.01364216]
[1642524890857,2.62253495,3136.5,3135.8,0.01477901]
[1642524891261,0.1275,3136.4,3135.8,0.01477901]
[1642524891458,0.92504,3136.4,3135.7,0.01534743]
[1642524891659,2.13040372,3135.8,3135.5,0.01648428]
[1642524891862,0.1275,3136.4,3135.5,0.01648428]
[1642524892486,0.3,3136.5,3135.5,0.01648428]
[1642524892687,0.1275,3136.4,3135.7,1.3420098]
[1642524892885,2.24247636,3136.1,3135.7,1.3420098]
[1642524893085,2.24247636,3136.1,3135.8,0.01477901]
[1642524893289,2.54247636,3136.1,3135.8,0.81216901]
[1642524893686,2.54247636,3136.1,3135.9,0.01421058]
[1642524894091,2.54247636,3136.1,3135.7,0.01534743]
[1642524894292,0.6,3136.1,3135.7,0.01534743]
[1642524894495,0.1275,3136.6,3135.7,0.01534743]
[1642524894891,1.2249329,3136.6,3135.7,0.01534743]
[1642524895292,0.79756,3136.4,3135.7,0.01534743]
[1642524895492,0.1275,3136.3,3135.7,0.01534743]
[1642524895835,0.7976282,3136.0,3135.2,0.01818955]
[1642524896043,4.8817,3135.9,3135.2,0.01818955]
[1642524896242,2.23143384,3135.7,3135.1,2.10461342]
[1642524896440,2.23143384,3135.7,3135.1,1.6531376]
[1642524896640,2.83143384,3135.7,3135.1,0.18388952]
[1642524896839,2.83143384,3135.7,3135.1,0.1275]
[1642524896840,3.75903384,3135.7,3135.1,0.1275]
[1642524897440,3.75903384,3135.7,3135.0,0.79762]
[1642524898044,4.78347776,3135.7,3135.0,0.79762]
[1642524898647,0.1275,3135.6,3134.8,1.59511]